fUST/lending_fUST_20250815
["ID","MTS","AMOUNT","RATE_DAILY","PERIOD"]
[379209036,1755187231949,200.0,0.00028425,120]
[379209042,1755187273049,673.31,0.00020938,30]
[379209043,1755187273515,1346.62,0.00022842,30]
[379209044,1755187291060,200.0,0.00027468,120]
[379209059,1755187351823,200.0,0.00027247,120]
[379209060,1755187359415,662.29,0.00021169,30]
[379209061,1755187363989,154.631803,0.0002254,30]
[379209067,1755187411866,200.0,0.00029196,120]
[379209070,1755187450968,658.68,0.0002116,30]
[379209071,1755187471101,200.0,0.00027274,120]
[379209072,1755187532088,200.0,0.00029011,120]
[379209073,1755187532963,655.09,0.00021214,30]
[379209074,1755187592068,200.0,0.00024795,120]
[379209075,1755187616349,651.51,0.00020912,30]
[379209076,1755187616677,1303.03,0.00022813,30]
[379209077,1755187651338,200.0,0.00026867,120]
[379209079,1755187699994,640.85,0.00021146,30]
[379209080,1755187711116,200.0,0.00027884,120]
[379209094,1755187771068,200.0,0.00029383,120]
[379209097,1755187799271,637.36,0.00021135,30]
[379209119,1755187832534,-1725.70530901,0.00015945,2]
[379209120,1755187832544,-300.0,0.00016437,2]
[379209121,1755187832554,-1200.0,0.00016437,2]
[379209122,1755187832564,-460.0,0.00016438,2]
[379209123,1755187832574,-592.50843216,0.00016438,2]
[379209124,1755187832583,-460.0,0.00016438,2]
[379209125,1755187832593,-460.0,0.00016438,2]
[379209126,1755187832602,-311.06076772,0.00016438,2]
[379209127,1755187832614,-148.93923228,0.00016438,2]
[379209128,1755187832623,-460.0,0.00016438,2]
[379209129,1755187832632,-460.0,0.00016438,2]
[379209130,1755187832641,-460.0,0.00016438,2]
[379209131,1755187832651,-460.0,0.00016438,2]
[379209132,1755187832660,-460.0,0.00016438,2]
[379209133,1755187832670,-337.80689836,0.00016438,2]
[379209134,1755187832680,-61.9849482,0.00016438,2]
[379209179,1755187839470,-398.0150518,0.00016438,2]
[379209181,1755187839480,-460.0,0.00016438,2]
[379209183,1755187839490,-460.0,0.00016438,2]
[379209185,1755187839499,-460.0,0.00016438,2]
[379209187,1755187839513,-460.0,0.00016438,2]
[379209189,1755187839522,-460.0,0.00016438,2]
[379209191,1755187839531,-460.0,0.00016438,2]
[379209193,1755187839541,-460.0,0.00016438,2]
[379209194,1755187839550,-460.0,0.00016438,2]
[379209196,1755187839560,-460.0,0.00016438,2]
[379209198,1755187839570,-460.0,0.00016438,2]
[379209200,1755187839580,-460.0,0.00016438,2]
[379209202,1755187839590,-460.0,0.00016438,2]
[379209204,1755187839601,-460.0,0.00016438,2]
[379209206,1755187839611,-460.0,0.00016438,2]
[379209208,1755187839621,-460.0,0.00016438,2]
[379209210,1755187839630,-460.0,0.00016438,2]
[379209212,1755187839640,-460.0,0.00016438,2]
[379209214,1755187839649,-460.0,0.00016438,2]
[379209216,1755187839659,-460.0,0.00016438,2]
[379209218,1755187839668,-541.1,0.00016438,2]
[379209220,1755187839677,-460.0,0.00016438,2]
[379209222,1755187839687,-1440.72,0.00016438,2]
[379209224,1755187839696,-460.0,0.00016438,2]
[379209226,1755187839706,-460.0,0.00016438,2]
[379209228,1755187839715,-460.0,0.00016438,2]
[379209230,1755187839725,-576.7,0.00016438,2]
[379209232,1755187839734,-1.00605462,0.00016438,2]
[379209251,1755187840259,-458.99394538,0.00016438,2]
[379209252,1755187840269,-1589.33,0.00016438,2]
[379209253,1755187840279,-460.0,0.00016438,2]
[379209254,1755187840288,-460.0,0.00016438,2]
[379209255,1755187840297,-460.0,0.00016438,2]
[379209256,1755187840307,-460.0,0.00016438,2]
[379209257,1755187840316,-460.0,0.00016438,2]
[379209258,1755187840325,-1176.69,0.00016438,2]
[379209259,1755187840334,-460.0,0.00016438,2]
[379209260,1755187840344,-840.63,0.00016438,2]
[379209261,1755187840354,-460.0,0.00016438,2]
[379209262,1755187840364,-460.0,0.00016438,2]
[379209263,1755187840373,-556.05,0.00016438,2]
[379209264,1755187840383,-2635.79,0.00016438,2]
[379209265,1755187840393,-460.0,0.00016438,2]
[379209266,1755187840402,-460.0,0.00016438,2]
[379209267,1755187840411,-460.0,0.00016438,2]
[379209268,1755187840420,-1034.84,0.00016438,2]
[379209270,1755187840430,-1749.58,0.00016438,2]
[379209272,1755187840440,-460.0,0.00016438,2]
[379209273,1755187840449,-460.0,0.00016438,2]
[379209274,1755187840461,-460.0,0.00016438,2]
[379209275,1755187840473,-460.0,0.00016438,2]
[379209276,1755187840485,-1218.4,0.00016438,2]
[379209277,1755187840497,-513.21,0.00016438,2]
[379209278,1755187840509,-460.0,0.00016438,2]
[379209279,1755187840520,-460.0,0.00016438,2]
[379209280,1755187840531,-460.0,0.00016438,2]
[379209281,1755187840542,-460.0,0.00016438,2]
[379209282,1755187840552,-460.0,0.00016438,2]
[379209283,1755187840563,-460.0,0.00016438,2]
[379209284,1755187840576,-460.0,0.00016438,2]
[379209285,1755187840587,-460.0,0.00016438,2]
[379209286,1755187840599,-460.0,0.00016438,2]
[379209287,1755187840609,-201.82135588,0.00016438,2]
[379209288,1755187840620,-460.0,0.00016438,2]
[379209289,1755187840632,-637.3,0.00016438,2]
[379209290,1755187840643,-1691.99647562,0.00016438,2]
[379209291,1755187840664,-1.39352438,0.00016438,2]
[379209292,1755187840676,-874.56,0.00016438,2]
[379209293,1755187840686,-460.0,0.00016438,2]
[379209294,1755187840697,-507.8,0.00016438,2]
[379209295,1755187840709,-460.0,0.00016438,2]
[379209296,1755187840720,-293.14401951,0.00016438,2]
[379209416,1755187845913,-166.85598049,0.00016438,2]
[379209417,1755187845926,-481.56,0.00016438,2]
[379209418,1755187845938,-4776.86,0.00016438,2]
[379209419,1755187845949,-460.0,0.00016438,2]
[379209420,1755187845960,-460.0,0.00016438,2]
[379209421,1755187845970,-460.0,0.00016438,2]
[379209422,1755187845982,-460.0,0.00016438,2]
[379209423,1755187845994,-460.0,0.00016438,2]
[379209424,1755187846004,-1877.52,0.00016438,2]
[379209425,1755187846019,-460.0,0.00016438,2]
[379209426,1755187846031,-460.0,0.00016438,2]
[379209427,1755187846042,-582.48,0.00016438,2]
[379209428,1755187846053,-2425.54,0.00016438,2]
[379209429,1755187846064,-460.0,0.00016438,2]
[379209430,1755187846074,-460.0,0.00016438,2]
[379209431,1755187846085,-460.0,0.00016438,2]
[379209432,1755187846096,-1186.62,0.00016438,2]
[379209433,1755187846107,-460.0,0.00016438,2]
[379209434,1755187846118,-2009.53525162,0.00016438,2]
[379209435,1755187846129,-151.0,0.00016611,2]
[379209436,1755187846141,-642.10341982,0.00016611,2]
[379209437,1755187846152,-174.76632904,0.00016611,2]
[379209438,1755187846163,-500.0,0.00016611,2]
[379209439,1755187846174,-500.0,0.00016611,2]
[379209440,1755187846186,-500.0,0.00016611,2]
[379209441,1755187846197,-259.578712,0.00016612,2]
[379209442,1755187846208,-151.0,0.00016612,2]
[379209443,1755187846220,-217.380083,0.00016612,2]
[379209444,1755187846231,-151.0,0.00016612,2]
[379209446,1755187846243,-151.0,0.00016612,2]
[379209447,1755187846254,-151.0,0.00016612,2]
[379209448,1755187846270,-151.0,0.00016612,2]
[379209449,1755187846282,-238.350241,0.00016612,2]
[379209450,1755187846304,-1926.597236,0.00016612,2]
[379209452,1755187846315,-1926.597236,0.00016612,2]
[379209453,1755187846326,-317.933831,0.00016612,2]
[379209454,1755187846338,-317.933831,0.00016612,2]
[379209455,1755187846348,-151.0,0.00016612,2]
[379209456,1755187846359,-160.811716,0.00016612,2]
[379209457,1755187846371,-151.0,0.00016612,2]
[379209458,1755187846383,-152.283643,0.00016612,2]
[379209459,1755187846394,-160.811716,0.00016612,2]
[379209460,1755187846405,-151.0,0.00016612,2]
[379209461,1755187846417,-151.0,0.00016612,2]
[379209462,1755187846428,-151.0,0.00016612,2]
[379209463,1755187846439,-151.0,0.00016612,2]
[379209465,1755187846451,-151.0,0.00016612,2]
[379209466,1755187846462,-151.0,0.00016612,2]
[379209467,1755187846472,-151.0,0.00016612,2]
[379209468,1755187846483,-151.0,0.00016612,2]
[379209469,1755187846493,-151.0,0.00016612,2]
[379209470,1755187846504,-151.0,0.00016612,2]
[379209471,1755187846521,-151.0,0.00016612,2]
[379209472,1755187846531,-151.0,0.00016612,2]
[379209473,1755187846542,-2754.41847112,0.00016612,2]
[379209474,1755187846556,-24295.65408168,0.00016612,2]
[379209475,1755187846566,-325.78,0.00016702,3]
[379209476,1755187846577,-1669.70991203,0.00016712,2]
[379209477,1755187846588,-246.62602086,0.00016712,2]
[379209478,1755187846598,-151.0,0.00016712,2]
[379209479,1755187846608,-500.0,0.00016712,2]
[379209480,1755187846619,-500.0,0.00016712,2]
[379209481,1755187846630,-500.0,0.00016712,2]
[379209482,1755187846640,-500.0,0.00016712,2]
[379209483,1755187846651,-500.0,0.00016712,2]
[379209484,1755187846661,-500.0,0.00016712,2]
[379209485,1755187846671,-282.75038961,0.00016712,2]
[379209486,1755187846682,-500.0,0.00016712,2]
[379209487,1755187846692,-500.0,0.00016712,2]
[379209488,1755187846702,-500.0,0.00016712,2]
[379209489,1755187846713,-500.0,0.00016712,2]
[379209490,1755187846725,-215.63953318,0.00016712,2]
[379209491,1755187846735,-151.0,0.00016712,2]
[379209492,1755187846745,-460.0,0.00016712,2]
[379209493,1755187846756,-151.0,0.00016712,2]
[379209494,1755187846770,-151.453336,0.00016712,2]
[379209495,1755187846781,-211.094054,0.00016712,2]
[379209496,1755187846791,-211.094054,0.00016712,2]
[379209497,1755187846801,-211.094054,0.00016712,2]
[379209498,1755187846812,-211.094054,0.00016712,2]
[379209499,1755187846824,-460.0,0.00016712,2]
[379209500,1755187846838,-151.0,0.00016712,2]
[379209501,1755187846848,-151.0,0.00016712,2]
[379209502,1755187846859,-151.0,0.00016712,2]
[379209503,1755187846870,-151.0,0.00016712,2]
[379209504,1755187846880,-151.0,0.00016712,2]
[379209505,1755187846891,-151.0,0.00016712,2]
[379209506,1755187846901,-460.0,0.00016712,2]
[379209507,1755187846913,-460.0,0.00016712,2]
[379209508,1755187846923,-151.0,0.00016712,2]
[379209509,1755187846934,-151.0,0.00016712,2]
[379209510,1755187846944,-151.0,0.00016712,2]
[379209511,1755187846955,-460.0,0.00016712,2]
[379209512,1755187846965,-460.0,0.00016712,2]
[379209513,1755187846975,-151.0,0.00016712,2]
[379209514,1755187846985,-460.0,0.00016712,2]
[379209515,1755187846995,-162.01808912,0.00016712,2]
[379209516,1755187847008,-297.98191088,0.00016712,2]
[379209517,1755187847021,-151.0,0.00016712,2]
[379209518,1755187847032,-211.69333418,0.00016712,2]
[379209519,1755187847042,-151.0,0.00016712,2]
[379209520,1755187847052,-151.0,0.00016712,2]
[379209521,1755187847062,-300.00064,0.00016712,2]
[379209522,1755187847311,-460.0,0.00016712,2]
[379209523,1755187847321,-262.03567508,0.00016712,2]
[379209524,1755187847330,-460.0,0.00016712,2]
[379209525,1755187847340,-23.97667857,0.00016712,2]
[379209526,1755187847370,-436.02332143,0.00016712,2]
[379209527,1755187847380,-500.0,0.00016712,2]
[379209528,1755187847390,-151.0,0.00016712,2]
[379209529,1755187847400,-151.0,0.00016712,2]
[379209530,1755187847410,-460.0,0.00016712,2]
[379209531,1755187847419,-151.0,0.00016712,2]
[379209532,1755187847429,-1926.597236,0.00016712,2]
[379209533,1755187847440,-1926.597236,0.00016712,2]
[379209534,1755187847450,-1926.597236,0.00016712,2]
[379209535,1755187847459,-460.0,0.00016712,2]
[379209536,1755187847469,-158.86374308,0.00016712,2]
[379209537,1755187847478,-1926.597236,0.00016712,2]
[379209538,1755187847488,-151.0,0.00016712,2]
[379209539,1755187847498,-1926.597236,0.00016712,2]
[379209540,1755187847508,-1926.597236,0.00016712,2]
[379209541,1755187847524,-1926.597236,0.00016712,2]
[379209542,1755187847534,-151.0,0.00016712,2]
[379209543,1755187847544,-1926.597236,0.00016712,2]
[379209544,1755187847554,-500.0,0.00016712,2]
[379209545,1755187847563,-151.0,0.00016712,2]
[379209546,1755187847573,-154.04585953,0.00016712,2]
[379209547,1755187847583,-151.0,0.00016712,2]
[379209548,1755187847593,-500.0,0.00016712,2]
[379209549,1755187847602,-317.933831,0.00016712,2]
[379209550,1755187847611,-317.933831,0.00016712,2]
[379209551,1755187847622,-317.933831,0.00016712,2]
[379209552,1755187847631,-317.933831,0.00016712,2]
[379209553,1755187847641,-317.933831,0.00016712,2]
[379209554,1755187847651,-317.933831,0.00016712,2]
[379209555,1755187847660,-317.933831,0.00016712,2]
[379209556,1755187847670,-317.933831,0.00016712,2]
[379209557,1755187847680,-460.0,0.00016712,2]
[379209558,1755187847690,-460.0,0.00016712,2]
[379209559,1755187847699,-445.51360562,0.00016712,2]
[379209560,1755187847709,-460.0,0.00016712,2]
[379209561,1755187847719,-460.0,0.00016712,2]
[379209562,1755187847728,-460.0,0.00016712,2]
[379209563,1755187847738,-460.0,0.00016712,2]
[379209564,1755187847747,-460.0,0.00016712,2]
[379209565,1755187847757,-460.0,0.00016712,2]
[379209566,1755187847770,-460.0,0.00016712,2]
[379209567,1755187847779,-151.0,0.00016712,2]
[379209568,1755187847789,-460.0,0.00016712,2]
[379209569,1755187847799,-160.811716,0.00016712,2]
[379209570,1755187847809,-160.811716,0.00016712,2]
[379209571,1755187847821,-160.811716,0.00016712,2]
[379209572,1755187847831,-151.0,0.00016712,2]
[379209573,1755187847841,-160.811716,0.00016712,2]
[379209574,1755187847851,-151.0,0.00016712,2]
[379209575,1755187847861,-258.817714,0.00016712,2]
[379209576,1755187847870,-160.811716,0.00016712,2]
[379209577,1755187847880,-160.811716,0.00016712,2]
[379209578,1755187847890,-160.811716,0.00016712,2]
[379209579,1755187847902,-160.811716,0.00016712,2]
[379209580,1755187847912,-460.0,0.00016712,2]
[379209581,1755187847922,-541.1,0.00016712,2]
[379209582,1755187847931,-460.0,0.00016712,2]
[379209583,1755187847941,-1440.72,0.00016712,2]
[379209584,1755187847950,-460.0,0.00016712,2]
[379209585,1755187847960,-460.0,0.00016712,2]
[379209586,1755187847970,-460.0,0.00016712,2]
[379209587,1755187847980,-576.7,0.00016712,2]
[379209588,1755187847990,-151.0,0.00016712,2]
[379209589,1755187847999,-460.0,0.00016712,2]
[379209590,1755187848009,-151.0,0.00016712,2]
[379209591,1755187848027,-201.275364,0.00016712,2]
[379209592,1755187848036,-1589.33,0.00016712,2]
[379209593,1755187848047,-151.0,0.00016712,2]
[379209594,1755187848058,-460.0,0.00016712,2]
[379209595,1755187848068,-151.0,0.00016712,2]
[379209596,1755187848078,-151.0,0.00016712,2]
[379209597,1755187848088,-151.0,0.00016712,2]
[379209598,1755187848098,-290.716907,0.00016712,2]
[379209599,1755187848108,-460.0,0.00016712,2]
[379209600,1755187848118,-460.0,0.00016712,2]
[379209601,1755187848128,-460.0,0.00016712,2]
[379209602,1755187848138,-1176.69,0.00016712,2]
[379209603,1755187848148,-1067.0,0.00016712,2]
[379209604,1755187848158,-460.0,0.00016712,2]
[379209605,1755187848167,-500.0,0.00016712,2]
[379209606,1755187848177,-151.0,0.00016712,2]
[379209607,1755187848186,-151.0,0.00016712,2]
[379209608,1755187848196,-151.0,0.00016712,2]
[379209609,1755187848205,-151.0,0.00016712,2]
[379209610,1755187848215,-151.0,0.00016712,2]
[379209611,1755187848225,-151.0,0.00016712,2]
[379209612,1755187848235,-500.0,0.00016712,2]
[379209613,1755187848245,-840.63,0.00016712,2]
[379209614,1755187848256,-151.0,0.00016712,2]
[379209615,1755187848269,-292.248738,0.00016712,2]
[379209616,1755187848279,-152.19658938,0.00016712,2]
[379209617,1755187848289,-460.0,0.00016712,2]
[379209618,1755187848299,-151.0,0.00016712,2]
[379209619,1755187848310,-556.05,0.00016712,2]
[379209620,1755187848320,-2635.79,0.00016712,2]
[379209621,1755187848330,-460.0,0.00016712,2]
[379209622,1755187848340,-460.0,0.00016712,2]
[379209623,1755187848350,-460.0,0.00016712,2]
[379209624,1755187848360,-1034.84,0.00016712,2]
[379209625,1755187848370,-1749.58,0.00016712,2]
[379209626,1755187848380,-460.0,0.00016712,2]
[379209627,1755187848390,-460.0,0.00016712,2]
[379209628,1755187848400,-460.0,0.00016712,2]
[379209629,1755187848410,-272.02777602,0.00016712,2]
[379209630,1755187848433,-187.97222398,0.00016712,2]
[379209631,1755187848443,-1218.4,0.00016712,2]
[379209632,1755187848453,-513.21,0.00016712,2]
[379209633,1755187848463,-460.0,0.00016712,2]
[379209634,1755187848472,-460.0,0.00016712,2]
[379209635,1755187848483,-460.0,0.00016712,2]
[379209636,1755187848493,-460.0,0.00016712,2]
[379209637,1755187848503,-151.0,0.00016712,2]
[379209638,1755187848514,-460.0,0.00016712,2]
[379209639,1755187848524,-151.0,0.00016712,2]
[379209640,1755187848533,-460.0,0.00016712,2]
[379209641,1755187848542,-460.0,0.00016712,2]
[379209642,1755187848552,-460.0,0.00016712,2]
[379209643,1755187848563,-460.0,0.00016712,2]
[379209644,1755187848572,-637.3,0.00016712,2]
[379209645,1755187848582,-1693.39,0.00016712,2]
[379209646,1755187848592,-874.56,0.00016712,2]
[379209647,1755187848602,-151.0,0.00016712,2]
[379209648,1755187848612,-151.0,0.00016712,2]
[379209649,1755187848622,-151.0,0.00016712,2]
[379209650,1755187848631,-151.0,0.00016712,2]
[379209651,1755187848641,-151.0,0.00016712,2]
[379209652,1755187848650,-166.052772,0.00016712,2]
[379209653,1755187848660,-460.0,0.00016712,2]
[379209654,1755187848670,-507.8,0.00016712,2]
[379209655,1755187848679,-460.0,0.00016712,2]
[379209656,1755187848689,-460.0,0.00016712,2]
[379209657,1755187848699,-481.56,0.00016712,2]
[379209658,1755187848709,-4776.86,0.00016712,2]
[379209659,1755187848717,-460.0,0.00016712,2]
[379209660,1755187848725,-460.0,0.00016712,2]
[379209661,1755187848735,-460.0,0.00016712,2]
[379209662,1755187848744,-460.0,0.00016712,2]
[379209663,1755187848755,-1877.52,0.00016712,2]
[379209664,1755187848768,-460.0,0.00016712,2]
[379209665,1755187848778,-460.0,0.00016712,2]
[379209666,1755187848788,-151.0,0.00016712,2]
[379209667,1755187848798,-151.0,0.00016712,2]
[379209668,1755187848807,-500.0,0.00016712,2]
[379209669,1755187848817,-582.48,0.00016712,2]
[379209670,1755187848827,-2425.54,0.00016712,2]
[379209671,1755187848840,-460.0,0.00016712,2]
[379209672,1755187848850,-151.0,0.00016712,2]
[379209673,1755187848860,-291.20148537,0.00016712,2]
[379209674,1755187848870,-460.0,0.00016712,2]
[379209675,1755187848879,-1186.62,0.00016712,2]
[379209676,1755187848889,-460.0,0.00016712,2]
[379209677,1755187848898,-151.0,0.00016712,2]
[379209678,1755187848907,-151.0,0.00016712,2]
[379209679,1755187848918,-151.0,0.00016712,2]
[379209680,1755187848928,-151.0,0.00016712,2]
[379209681,1755187848937,-151.0,0.00016712,2]
[379209682,1755187848948,-211.094054,0.00016766,2]
[379209683,1755187848958,-211.094054,0.00016766,2]
[379209684,1755187848969,-151.0,0.00016766,2]
[379209685,1755187848979,-200.0,0.00016766,2]
[379209686,1755187848989,-200.0,0.00016766,2]
[379209687,1755187849000,-200.0,0.00016766,2]
[379209688,1755187849010,-200.0,0.00016766,2]
[379209689,1755187849025,-200.0,0.00016766,2]
[379209690,1755187849035,-200.0,0.00016766,2]
[379209691,1755187849046,-253.8685662,0.000168,2]
[379209692,1755187849057,-153.0,0.000168,2]
[379209693,1755187849067,-153.0,0.000168,2]
[379209694,1755187849077,-153.0,0.000168,2]
[379209695,1755187849088,-153.0,0.000168,2]
[379209696,1755187849098,-153.0,0.000168,2]
[379209697,1755187849108,-153.0,0.000168,2]
[379209698,1755187849118,-6111.99112898,0.00016886,2]
[379209699,1755187849129,-843.37884167,0.00016956,2]
[379209700,1755187849139,-232.05637125,0.00016956,2]
[379209701,1755187849149,-528.19044044,0.00016956,2]
[379209702,1755187849159,-160.0,0.00016956,2]
[379209703,1755187849169,-417.15472785,0.00016956,2]
[379209704,1755187849179,-160.0,0.00016956,2]
[379209705,1755187849190,-461.9529908,0.00016956,2]
[379209706,1755187849200,-215.59581046,0.00016956,2]
[379209707,1755187849210,-160.0,0.00016957,2]
[379209708,1755187849221,-160.0,0.00016957,2]
[379209709,1755187849231,-160.0,0.00016957,2]
[379209710,1755187849241,-160.0,0.00016957,2]
[379209711,1755187849252,-500.0,0.00016973,2]
[379209712,1755187849261,-500.0,0.00016973,2]
[379209713,1755187849275,-500.0,0.00016973,2]
[379209714,1755187849284,-500.0,0.00016973,2]
[379209715,1755187849294,-500.0,0.00016973,2]
[379209716,1755187849304,-500.0,0.00016973,2]
[379209717,1755187849315,-500.0,0.00016973,2]
[379209718,1755187849325,-500.0,0.00016973,2]
[379209719,1755187849336,-500.0,0.00016976,2]
[379209720,1755187849345,-500.0,0.00016976,2]
[379209721,1755187849354,-500.0,0.00016976,2]
[379209722,1755187849365,-500.0,0.00016976,2]
[379209723,1755187849375,-500.0,0.00016976,2]
[379209724,1755187849386,-151.0,0.00016976,2]
[379209725,1755187849396,-166.68823871,0.00016976,2]
[379209726,1755187849406,-10142.05215938,0.00016976,2]
[379209727,1755187849415,-151.0,0.00016976,2]
[379209728,1755187849425,-151.0,0.00016976,2]
[379209729,1755187849434,-151.0,0.00016976,2]
[379209730,1755187849444,-151.0,0.00016976,2]
[379209731,1755187849453,-151.0,0.00016976,2]
[379209732,1755187849463,-151.0,0.00016976,2]
[379209733,1755187849472,-151.0,0.00016976,2]
[379209734,1755187849481,-151.0,0.00016976,2]
[379209735,1755187849491,-152.887409,0.00016976,2]
[379209736,1755187849500,-1926.597236,0.00016976,2]
[379209737,1755187849510,-1926.597236,0.00016976,2]
[379209738,1755187849523,-160.811716,0.00016976,2]
[379209739,1755187849533,-160.811716,0.00016976,2]
[379209740,1755187849543,-151.0,0.00016976,2]
[379209741,1755187849552,-151.0,0.00016976,2]
[379209742,1755187849562,-277.41948146,0.00016985,2]
[379209743,1755187849572,-187.89363834,0.00016985,2]
[379209744,1755187849581,-194.19363702,0.00016985,2]
[379209745,1755187849591,-501.02397957,0.00016986,2]
[379209746,1755187849601,-151.0,0.00016986,2]
[379209747,1755187849610,-151.0,0.00016986,2]
[379209748,1755187849620,-151.0,0.00016986,2]
[379209749,1755187849630,-151.0,0.00016986,2]
[379209750,1755187849639,-151.0,0.00016986,2]
[379209751,1755187849649,-500.0,0.00016986,2]
[379209752,1755187849658,-276.14592904,0.00016986,2]
[379209753,1755187849667,-151.0,0.00016986,2]
[379209754,1755187849677,-514.4750954,0.00016986,2]
[379209755,1755187849687,-1067.0,0.00016986,2]
[379209756,1755187849696,-500.0,0.00016986,2]
[379209757,1755187849706,-151.0,0.00016986,2]
[379209758,1755187849715,-500.0,0.00016986,2]
[379209759,1755187849725,-151.0,0.00016986,2]
[379209760,1755187849735,-151.0,0.00016986,2]
[379209761,1755187849745,-151.0,0.00016986,2]
[379209762,1755187849755,-500.0,0.00016986,2]
[379209763,1755187849766,-151.0,0.00016986,2]
[379209764,1755187849777,-151.0,0.00016986,2]
[379209765,1755187849787,-151.0,0.00016986,2]
[379209766,1755187849797,-178.638599,0.00016986,2]
[379209767,1755187849807,-151.0,0.00016986,2]
[379209768,1755187849820,-300.0,0.00016986,2]
[379209769,1755187849831,-151.0,0.00016986,2]
[379209770,1755187849842,-151.0,0.00016986,2]
[379209771,1755187849852,-151.0,0.00016986,2]
[379209772,1755187849863,-151.0,0.00016986,2]
[379209773,1755187849873,-151.0,0.00016986,2]
[379209774,1755187849883,-776.183832,0.00016986,2]
[379209775,1755187849894,-776.183832,0.00016986,2]
[379209776,1755187849905,-151.0,0.00016986,2]
[379209777,1755187849915,-301.242605,0.00016986,2]
[379209778,1755187849925,-152.560095,0.00016986,2]
[379209779,1755187849935,-151.0,0.00016986,2]
[379209780,1755187849945,-151.0,0.00016986,2]
[379209781,1755187849955,-151.0,0.00016986,2]
[379209782,1755187849965,-151.0,0.00016986,2]
[379209783,1755187849975,-151.0,0.00016986,2]
[379209784,1755187849985,-151.0,0.00016986,2]
[379209785,1755187849995,-151.0,0.00016986,2]
[379209786,1755187850005,-256.06264,0.00016986,2]
[379209787,1755187850018,-151.0,0.00016986,2]
[379209788,1755187850028,-151.0,0.00016986,2]
[379209789,1755187850038,-151.0,0.00016986,2]
[379209790,1755187850047,-151.0,0.00016986,2]
[379209791,1755187850057,-151.0,0.00016986,2]
[379209792,1755187850066,-151.0,0.00016986,2]
[379209793,1755187850076,-190.592057,0.00016986,2]
[379209794,1755187850086,-190.592057,0.00016986,2]
[379209795,1755187850096,-151.0,0.00016986,2]
[379209796,1755187850106,-151.0,0.00016986,2]
[379209797,1755187850116,-151.0,0.00016986,2]
[379209798,1755187850126,-151.0,0.00016986,2]
[379209799,1755187850135,-151.0,0.00016986,2]
[379209800,1755187850145,-151.0,0.00016986,2]
[379209801,1755187850154,-151.0,0.00016986,2]
[379209802,1755187850164,-151.0,0.00016986,2]
[379209803,1755187850174,-151.0,0.00016986,2]
[379209804,1755187850184,-151.0,0.00016986,2]
[379209805,1755187850194,-151.0,0.00016986,2]
[379209806,1755187850204,-151.0,0.00016986,2]
[379209807,1755187850213,-151.0,0.00016986,2]
[379209808,1755187850223,-151.0,0.00016986,2]
[379209809,1755187850233,-151.0,0.00016986,2]
[379209810,1755187850243,-151.0,0.00016986,2]